fUST/lending_fUST_20250522
["ID","MTS","AMOUNT","RATE_DAILY","PERIOD"]
[361856932,1747846239120,-500.0,0.00019951,2]
[361856934,1747846239130,-500.0,0.00019951,2]
[361856936,1747846239140,-500.0,0.00019951,2]
[361856937,1747846239150,-500.0,0.00019951,2]
[361856939,1747846239160,-500.0,0.00019951,2]
[361856941,1747846239171,-500.0,0.00019951,2]
[361856942,1747846239180,-500.0,0.00019951,2]
[361856944,1747846239190,-500.0,0.00019951,2]
[361856945,1747846239199,-500.0,0.00019951,2]
[361856946,1747846239209,-500.0,0.00019951,2]
[361856947,1747846239219,-500.0,0.00019951,2]
[361856948,1747846239229,-500.0,0.00019951,2]
[361856949,1747846239239,-500.0,0.00019951,2]
[361856950,1747846239253,-577.18808958,0.00019951,2]
[361856952,1747846239263,-500.0,0.00019951,2]
[361856954,1747846239272,-500.0,0.00019951,2]
[361856956,1747846239282,-500.0,0.00019951,2]
[361856958,1747846239291,-437.52918341,0.00019951,2]
[361857024,1747846244018,-21.61317848,0.00019485,2]
[361857026,1747846244030,-4978.38682152,0.00019485,2]
[361857027,1747846244040,-62.47081659,0.00019951,2]
[361857028,1747846244049,-500.0,0.00019951,2]
[361857029,1747846244058,-190.9303286,0.00019951,2]
[361857030,1747846244069,-309.0696714,0.00019951,2]
[361857031,1747846244079,-500.0,0.00019951,2]
[361857032,1747846244088,-500.0,0.00019951,2]
[361857033,1747846244098,-500.0,0.00019951,2]
[361857034,1747846244107,-500.0,0.00019951,2]
[361857035,1747846244116,-500.0,0.00019951,2]
[361857036,1747846244126,-500.0,0.00019951,2]
[361857038,1747846244136,-500.0,0.00019951,2]
[361857039,1747846244146,-500.0,0.00019951,2]
[361857041,1747846244156,-500.0,0.00019951,2]
[361857043,1747846244167,-500.0,0.00019951,2]
[361857045,1747846244177,-500.0,0.00019951,2]
[361857047,1747846244187,-500.0,0.00019951,2]
[361857049,1747846244197,-500.0,0.00019951,2]
[361857051,1747846244207,-1668.7014499,0.00019952,2]
[361857053,1747846244217,-157.86,0.0002,2]
[361857054,1747846244226,-408.74187214,0.00020107,2]
[361857055,1747846244237,-408.74187214,0.00020314,3]
[361857056,1747846244247,-408.74187214,0.00020521,3]
[361857057,1747846244259,-200.29233015,0.00020548,2]
[361857058,1747846244268,-164.211933,0.00020548,2]
[361857059,1747846244278,-306.742493,0.00020559,2]
[361857060,1747846244288,-408.74187214,0.00020728,3]
[361857061,1747846244298,-189.0,0.00020881,2]
[361857062,1747846244308,-5428.6063687,0.00020887,2]
[361857063,1747846244317,-408.74187214,0.00020934,4]
[361857064,1747846244327,-172.749,0.00021001,2]
[361857065,1747846244336,-408.74187214,0.00021141,4]
[361857066,1747846244345,-408.74187214,0.00021348,5]
[361857067,1747846244355,-31.87241972,0.00021438,2]
[361857115,1747846246732,-388.12758028,0.00021438,2]
[361857117,1747846246742,-298.45344172,0.00021439,2]
[361857119,1747846246757,-121.54655828,0.00021439,2]
[361857121,1747846246767,-1200.0,0.00021542,2]
[361857123,1747846246776,-408.74187214,0.00021555,5]
[361857125,1747846246786,-19332.86511275,0.0002166,2]
[361857127,1747846246798,-5667.13488725,0.0002166,2]
[361857129,1747846246808,-408.74187214,0.00021762,5]
[361857131,1747846246818,-500.0,0.00021772,2]
[361857133,1747846246831,-412.27627898,0.00021817,2]
[361857135,1747846246841,-561.21,0.00021907,3]
[361857137,1747846246850,-500.0,0.00021916,2]
[361857139,1747846246860,-500.0,0.00021916,2]
[361857141,1747846246869,-500.0,0.00021916,2]
[361857143,1747846246880,-500.0,0.00021916,2]
[361857145,1747846246893,-402.90538089,0.00021916,2]
[361857147,1747846246903,-500.0,0.00021916,2]
[361857149,1747846246913,-500.0,0.00021916,2]
[361857151,1747846246923,-612.29457981,0.00021916,2]
[361857154,1747846246933,-430.0,0.00021917,2]
[361857157,1747846246943,-430.0,0.00021917,2]
[361857159,1747846246952,-430.0,0.00021917,2]
[361857161,1747846246964,-430.0,0.00021917,2]
[361857163,1747846246975,-432.4990111,0.00021917,2]
[361857165,1747846246985,-432.33265084,0.00021917,2]
[361857167,1747846246995,-430.59049704,0.00021917,2]
[361857169,1747846247008,-207.77321708,0.00021917,2]
[361857171,1747846247018,-431.95477847,0.00021917,2]
[361857173,1747846247028,-430.0,0.00021917,2]
[361857175,1747846247038,-430.0,0.00021917,2]
[361857177,1747846247047,-500.0,0.00021917,2]
[361857179,1747846247057,-433.67973921,0.00021917,2]
[361857181,1747846247066,-518.51315092,0.00021917,2]
[361857183,1747846247077,-431.84466198,0.00021917,2]
[361857185,1747846247088,-430.0,0.00021917,2]
[361857187,1747846247097,-397.88877373,0.00021917,2]
[361857189,1747846247107,-430.0,0.00021917,2]
[361857191,1747846247117,-430.0,0.00021917,2]
[361857193,1747846247127,-430.0,0.00021917,2]
[361857195,1747846247138,-430.0,0.00021917,2]
[361857197,1747846247148,-430.0,0.00021917,2]
[361857199,1747846247158,-430.0,0.00021917,2]
[361857201,1747846247168,-278.26155394,0.00021917,2]
[361857203,1747846247179,-433.07122122,0.00021917,2]
[361857205,1747846247188,-430.0,0.00021917,2]
[361857207,1747846247198,-430.0,0.00021917,2]
[361857209,1747846247208,-339.47530622,0.00021917,2]
[361857211,1747846247218,-412.36419953,0.00021917,2]
[361857213,1747846247228,-341.25330377,0.00021917,2]
[361857215,1747846247238,-437.91963661,0.00021917,2]
[361857217,1747846247248,-433.10415432,0.00021917,2]
[361857219,1747846247261,-362.00983489,0.00021917,2]
[361857221,1747846247271,-435.3031213,0.00021917,2]
[361857223,1747846247282,-430.0,0.00021917,2]
[361857225,1747846247292,-433.34842396,0.00021917,2]
[361857227,1747846247302,-393.37866089,0.00021917,2]
[361857229,1747846247312,-472.56706527,0.00021917,2]
[361857230,1747846247322,-463.39853414,0.00021917,2]
[361857232,1747846247331,-432.20804807,0.00021917,2]
[361857234,1747846247341,-430.0,0.00021917,2]
[361857236,1747846247351,-430.0,0.00021917,2]
[361857238,1747846247361,-430.0,0.00021917,2]
[361857240,1747846247371,-199.12997492,0.00021917,2]
[361857242,1747846247381,-474.53,0.00021917,2]
[361857244,1747846247391,-305.61938522,0.00021917,2]
[361857246,1747846247400,-431.32001014,0.00021917,2]
[361857248,1747846247410,-435.92001821,0.00021917,2]
[361857250,1747846247420,-156.58465985,0.00021917,2]
[361857252,1747846247430,-450.14059653,0.00021917,2]
[361857254,1747846247441,-500.0,0.00021917,2]
[361857256,1747846247451,-430.0,0.00021917,2]
[361857258,1747846247462,-401.200108,0.00021917,2]
[361857260,1747846247471,-499.81840641,0.00021917,2]
[361857262,1747846247481,-430.0,0.00021917,2]
[361857264,1747846247491,-433.56276749,0.00021917,2]
[361857266,1747846247500,-433.56700865,0.00021917,2]
[361857268,1747846247513,-436.06035358,0.00021917,2]
[361857270,1747846247523,-430.0,0.00021917,2]
[361857272,1747846247532,-434.1402983,0.00021917,2]
[361857274,1747846247542,-374.46002821,0.00021917,2]
[361857276,1747846247552,-430.0,0.00021917,2]
[361857278,1747846247562,-430.0,0.00021917,2]
[361857280,1747846247572,-435.84696838,0.00021917,2]
[361857282,1747846247582,-430.0,0.00021917,2]
[361857284,1747846247592,-430.0,0.00021917,2]
[361857286,1747846247602,-430.95520742,0.00021917,2]
[361857288,1747846247612,-371.9006494,0.00021917,2]
[361857290,1747846247622,-475.28739493,0.00021917,2]
[361857293,1747846247632,-432.00262476,0.00021917,2]
[361857294,1747846247641,-430.0,0.00021917,2]
[361857296,1747846247651,-430.0,0.00021917,2]
[361857298,1747846247661,-483.54332379,0.00021917,2]
[361857300,1747846247670,-371.61362936,0.00021917,2]
[361857302,1747846247680,-441.49321264,0.00021917,2]
[361857304,1747846247690,-435.48156881,0.00021917,2]
[361857306,1747846247700,-225.08317339,0.00021917,2]
[361857307,1747846247710,-374.19465851,0.00021917,2]
[361857308,1747846247719,-438.3216834,0.00021917,2]
[361857309,1747846247729,-457.78,0.00021917,2]
[361857310,1747846247739,-439.27862095,0.00021917,2]
[361857311,1747846247748,-431.30415414,0.00021917,2]
[361857312,1747846247761,-438.31317453,0.00021917,2]
[361857313,1747846247770,-430.0,0.00021917,2]
[361857314,1747846247780,-406.93414591,0.00021917,2]
[361857315,1747846247789,-430.0,0.00021917,2]
[361857316,1747846247799,-430.0,0.00021917,2]
[361857317,1747846247808,-430.0,0.00021917,2]
[361857318,1747846247817,-434.33843952,0.00021917,2]
[361857319,1747846247827,-430.0,0.00021917,2]
[361857320,1747846247836,-430.0,0.00021917,2]
[361857321,1747846247846,-439.45953224,0.00021917,2]
[361857322,1747846247855,-430.0,0.00021917,2]
[361857323,1747846247864,-430.0,0.00021917,2]
[361857324,1747846247875,-478.05264455,0.00021917,2]
[361857325,1747846247885,-436.15753342,0.00021917,2]
[361857326,1747846247895,-430.0,0.00021917,2]
[361857327,1747846247904,-430.0,0.00021917,2]
[361857328,1747846247913,-407.45691496,0.00021917,2]
[361857329,1747846247924,-437.81707674,0.00021917,2]
[361857331,1747846247934,-470.91676991,0.00021917,2]
[361857333,1747846247943,-430.0,0.00021917,2]
[361857335,1747846247954,-430.0,0.00021917,2]
[361857337,1747846247964,-170.0,0.00021917,2]
[361857339,1747846247975,-437.76379918,0.00021917,2]
[361857341,1747846247985,-430.0,0.00021917,2]
[361857343,1747846247994,-430.0,0.00021917,2]
[361857345,1747846248007,-438.86235815,0.00021917,2]
[361857347,1747846248017,-430.0,0.00021917,2]
[361857349,1747846248027,-431.84873712,0.00021917,2]
[361857351,1747846248038,-436.97806649,0.00021917,2]
[361857353,1747846248049,-436.43800528,0.00021917,2]
[361857355,1747846248059,-430.77631435,0.00021917,2]
[361857357,1747846248070,-352.56046591,0.00021917,2]
[361857359,1747846248080,-576.62313737,0.00021917,2]
[361857361,1747846248089,-435.31978953,0.00021917,2]
[361857363,1747846248100,-394.21888373,0.00021917,2]
[361857365,1747846248110,-549.93,0.00021917,2]
[361857367,1747846248123,-440.42675374,0.00021917,2]
[361857369,1747846248133,-397.07452826,0.00021917,2]
[361857371,1747846248143,-430.0,0.00021917,2]
[361857373,1747846248152,-444.46000036,0.00021917,2]
[361857375,1747846248162,-430.0,0.00021917,2]
[361857377,1747846248171,-430.81734239,0.00021917,2]
[361857378,1747846248181,-432.15443476,0.00021917,2]
[361857380,1747846248191,-430.0,0.00021917,2]
[361857382,1747846248200,-430.0,0.00021917,2]
[361857384,1747846248211,-430.0,0.00021917,2]
[361857386,1747846248221,-458.74988753,0.00021917,2]
[361857388,1747846248231,-432.91792797,0.00021917,2]
[361857390,1747846248241,-430.0,0.00021917,2]
[361857392,1747846248253,-430.0,0.00021917,2]
[361857394,1747846248263,-436.29107751,0.00021917,2]
[361857396,1747846248274,-435.71679833,0.00021917,2]
[361857398,1747846248286,-435.27346953,0.00021917,2]
[361857400,1747846248297,-430.0,0.00021917,2]
[361857402,1747846248308,-430.0,0.00021917,2]
[361857404,1747846248318,-430.0,0.00021917,2]
[361857406,1747846248328,-431.90048002,0.00021917,2]
[361857408,1747846248339,-430.0,0.00021917,2]
[361857410,1747846248350,-430.0,0.00021917,2]
[361857413,1747846248362,-434.69325037,0.00021917,2]
[361857414,1747846248372,-430.0,0.00021917,2]
[361857417,1747846248382,-430.0,0.00021917,2]
[361857418,1747846248392,-430.0,0.00021917,2]
[361857420,1747846248402,-430.0,0.00021917,2]
[361857422,1747846248411,-430.0,0.00021917,2]
[361857424,1747846248421,-328.32649679,0.00021917,2]
[361857426,1747846248431,-430.0,0.00021917,2]
[361857428,1747846248441,-430.0,0.00021917,2]
[361857430,1747846248451,-430.0,0.00021917,2]
[361857432,1747846248461,-551.00290103,0.00021917,2]
[361857434,1747846248471,-430.0,0.00021917,2]
[361857436,1747846248481,-430.0,0.00021917,2]
[361857438,1747846248492,-430.0,0.00021917,2]
[361857440,1747846248503,-430.0,0.00021917,2]
[361857443,1747846248513,-430.0,0.00021917,2]
[361857444,1747846248523,-436.57794003,0.00021917,2]
[361857446,1747846248532,-434.69954197,0.00021917,2]
[361857448,1747846248542,-553.83,0.00021917,2]
[361857450,1747846248552,-500.0,0.00021917,2]
[361857452,1747846248561,-430.0,0.00021917,2]
[361857454,1747846248570,-430.0,0.00021917,2]
[361857456,1747846248580,-430.0,0.00021917,2]
[361857458,1747846248590,-431.47472214,0.00021917,2]
[361857460,1747846248599,-430.0,0.00021917,2]
[361857462,1747846248608,-1132.88,0.00021917,2]
[361857464,1747846248618,-435.07019828,0.00021917,2]
[361857466,1747846248627,-430.0,0.00021917,2]
[361857468,1747846248637,-430.0,0.00021917,2]
[361857470,1747846248647,-430.0,0.00021917,2]
[361857472,1747846248657,-430.0,0.00021917,2]
[361857474,1747846248667,-514.68204232,0.00021917,2]
[361857476,1747846248677,-430.0,0.00021917,2]
[361857478,1747846248687,-430.0,0.00021917,2]
[361857480,1747846248696,-376.73957545,0.00021917,2]
[361857482,1747846248705,-430.0,0.00021917,2]
[361857484,1747846248715,-430.0,0.00021917,2]
[361857486,1747846248724,-430.0,0.00021917,2]
[361857488,1747846248733,-378.60259231,0.00021917,2]
[361857490,1747846248743,-430.0,0.00021917,2]
[361857491,1747846248753,-430.0,0.00021917,2]
[361857493,1747846248762,-440.69683744,0.00021917,2]
[361857495,1747846248772,-432.79591416,0.00021917,2]
[361857498,1747846248783,-430.0,0.00021917,2]
[361857499,1747846248793,-430.0,0.00021917,2]
[361857501,1747846248803,-430.0,0.00021917,2]
[361857503,1747846248813,-430.0,0.00021917,2]
[361857505,1747846248823,-430.0,0.00021917,2]
[361857507,1747846248832,-316.6543019,0.00021917,2]
[361857509,1747846248842,-436.77263108,0.00021917,2]
[361857511,1747846248853,-479.0,0.00021917,2]
[361857513,1747846248862,-372.36280069,0.00021917,2]
[361857515,1747846248872,-430.0,0.00021917,2]
[361857517,1747846248886,-430.0,0.00021917,2]
[361857519,1747846248896,-430.0,0.00021917,2]
[361857521,1747846248906,-430.0,0.00021917,2]
[361857523,1747846248916,-430.0,0.00021917,2]
[361857525,1747846248926,-430.0,0.00021917,2]
[361857527,1747846248936,-430.0,0.00021917,2]
[361857529,1747846248945,-430.0,0.00021917,2]
[361857531,1747846248955,-430.0,0.00021917,2]
[361857533,1747846248966,-558.2,0.00021917,2]
[361857535,1747846248976,-229.4166889,0.00021917,2]
[361857537,1747846248986,-430.0,0.00021917,2]
[361857539,1747846248997,-331.94647272,0.00021917,2]
[361857541,1747846249010,-430.0,0.00021917,2]
[361857543,1747846249020,-430.0,0.00021917,2]
[361857545,1747846249030,-430.0,0.00021917,2]
[361857563,1747846249213,-430.0,0.00021917,2]
[361857565,1747846249224,-430.0,0.00021917,2]
[361857568,1747846249235,-430.0,0.00021917,2]
[361857570,1747846249246,-430.0,0.00021917,2]
[361857571,1747846249258,-430.0,0.00021917,2]
[361857573,1747846249269,-430.0,0.00021917,2]
[361857575,1747846249280,-465.45,0.00021917,2]
[361857578,1747846249290,-430.0,0.00021917,2]
[361857580,1747846249301,-421.7317485,0.00021917,2]
[361857582,1747846249311,-430.0,0.00021917,2]
[361857584,1747846249321,-430.0,0.00021917,2]
[361857586,1747846249331,-430.0,0.00021917,2]
[361857588,1747846249340,-430.0,0.00021917,2]
[361857590,1747846249350,-155.57452811,0.00021917,2]
[361857592,1747846249361,-430.0,0.00021917,2]
[361857594,1747846249370,-430.0,0.00021917,2]
[361857596,1747846249380,-431.1413675,0.00021917,2]
[361857598,1747846249390,-430.0,0.00021917,2]
[361857599,1747846249399,-430.0,0.00021917,2]
[361857601,1747846249409,-430.0,0.00021917,2]
[361857603,1747846249419,-430.0,0.00021917,2]
[361857605,1747846249428,-432.94839292,0.00021917,2]
[361857607,1747846249438,-430.0,0.00021917,2]
[361857609,1747846249447,-433.53431344,0.00021917,2]
[361857611,1747846249457,-430.0,0.00021917,2]
[361857613,1747846249468,-430.0,0.00021917,2]
[361857615,1747846249477,-435.87301484,0.00021917,2]
[361857617,1747846249487,-430.0,0.00021917,2]
[361857620,1747846249498,-430.0,0.00021917,2]
[361857622,1747846249508,-434.15660584,0.00021917,2]
[361857624,1747846249518,-237.74618375,0.00021917,2]
[361857626,1747846249527,-430.0,0.00021917,2]
[361857628,1747846249536,-444.10414097,0.00021917,2]
[361857630,1747846249546,-430.0,0.00021917,2]
[361857632,1747846249555,-432.22484918,0.00021917,2]
[361857634,1747846249566,-430.0,0.00021917,2]
[361857636,1747846249575,-432.48169646,0.00021917,2]
[361857637,1747846249585,-430.0,0.00021917,2]
[361857639,1747846249595,-519.93129921,0.00021917,2]
[361857642,1747846249605,-352.80608057,0.00021917,2]
[361857644,1747846249616,-430.0,0.00021917,2]
[361857646,1747846249625,-432.98985171,0.00021917,2]
[361857647,1747846249634,-430.0,0.00021917,2]
[361857649,1747846249643,-431.49538659,0.00021917,2]
[361857651,1747846249653,-430.0,0.00021917,2]
[361857653,1747846249663,-430.0,0.00021917,2]
[361857655,1747846249672,-430.0,0.00021917,2]
[361857657,1747846249681,-204.67353765,0.00021917,2]
[361857659,1747846249690,-352.75228329,0.00021917,2]
[361857661,1747846249700,-408.74187214,0.00021969,6]
[361857663,1747846249709,-170.0,0.00022,2]
[361857665,1747846249719,-500.0,0.00022058,2]
[361857667,1747846249728,-496.91037447,0.00022073,2]
[361857669,1747846249737,-500.0,0.00022073,2]
[361857671,1747846249746,-500.0,0.00022073,2]
[361857673,1747846249756,-500.0,0.00022073,2]
[361857675,1747846249766,-160.0,0.00022083,2]
[361857677,1747846249775,-160.0,0.00022083,2]
[361857679,1747846249785,-894.64583333,0.00022083,2]
[361857681,1747846249795,-422.71322487,0.00022083,2]
[361857683,1747846249806,-160.0,0.00022083,2]
[361857685,1747846249815,-212.41679935,0.00022089,2]
[361857687,1747846249825,-408.74187214,0.00022176,6]
[361857689,1747846249835,-225.00635675,0.00022189,2]
[361857691,1747846249845,-500.0,0.00022189,2]
[361857693,1747846249855,-160.42082829,0.00022189,2]
[361857695,1747846249864,-430.0,0.00022189,2]
[361857697,1747846249874,-430.0,0.00022189,2]
[361857698,1747846249886,-430.0,0.00022189,2]
[361857699,1747846249895,-430.0,0.00022189,2]
[361857701,1747846249905,-474.62,0.00022191,2]
[361857703,1747846249915,-338.49200306,0.00022191,2]
[361857705,1747846249927,-430.0,0.00022191,2]
[361857707,1747846249937,-470.0,0.00022191,2]
[361857709,1747846249946,-470.0,0.00022191,2]
[361857711,1747846249955,-500.0,0.00022191,2]
[361857713,1747846249966,-430.0,0.00022191,2]
[361857715,1747846249975,-407.21,0.00022191,2]
[361857717,1747846249984,-430.0,0.00022191,2]
[361857719,1747846249994,-180.77,0.00022191,2]
[361857721,1747846250006,-160.21,0.00022191,2]
[361857722,1747846250015,-419.52,0.00022191,2]
[361857723,1747846250024,-299.16,0.00022191,2]
[361857724,1747846250034,-430.0,0.00022191,2]
[361857725,1747846250043,-430.0,0.00022191,2]
[361857726,1747846250053,-379.37,0.00022191,2]
[361857727,1747846250063,-430.0,0.00022191,2]
[361857728,1747846250073,-245.37,0.00022191,2]
[361857729,1747846250082,-430.0,0.00022191,2]
[361857730,1747846250092,-441.16560004,0.00022191,2]
[361857731,1747846250101,-182.27,0.00022191,2]
[361857732,1747846250111,-173.21,0.00022191,2]
[361857733,1747846250124,-430.0,0.00022191,2]
[361857734,1747846250144,-512.56310109,0.00022191,2]
[361857735,1747846250154,-430.0,0.00022191,2]
[361857736,1747846250163,-430.0,0.00022191,2]
[361857737,1747846250173,-246.24,0.00022191,2]
[361857738,1747846250183,-430.0,0.00022191,2]
[361857739,1747846250193,-430.0,0.00022191,2]
[361857741,1747846250202,-430.0,0.00022191,2]
[361857743,1747846250212,-515.63,0.00022191,2]
[361857744,1747846250221,-430.0,0.00022191,2]
[361857746,1747846250231,-430.0,0.00022191,2]
[361857748,1747846250241,-1132.88,0.00022191,2]
[361857750,1747846250250,-373.8896859,0.00022191,2]
[361857752,1747846250263,-430.0,0.00022191,2]
[361857754,1747846250274,-276.08,0.00022191,2]
[361857756,1747846250284,-175.93,0.00022191,2]
[361857758,1747846250294,-315.42,0.00022191,2]
[361857760,1747846250303,-430.0,0.00022191,2]
[361857762,1747846250312,-430.0,0.00022191,2]
[361857764,1747846250322,-430.0,0.00022191,2]
[361857766,1747846250331,-157.87,0.00022191,2]
[361857768,1747846250341,-459.74,0.00022191,2]
[361857770,1747846250350,-430.0,0.00022191,2]
[361857772,1747846250359,-339.28,0.00022191,2]
[361857774,1747846250369,-430.0,0.00022191,2]
[361857776,1747846250378,-430.0,0.00022191,2]
[361857778,1747846250387,-505.74,0.00022191,2]
[361857780,1747846250397,-430.0,0.00022191,2]
[361857782,1747846250406,-504.18,0.00022191,2]
[361857784,1747846250415,-151.12567688,0.00022191,2]
[361857786,1747846250425,-430.0,0.00022191,2]
[361857788,1747846250435,-430.0,0.00022191,2]
[361857790,1747846250444,-534.53,0.00022191,2]
[361857792,1747846250453,-430.0,0.00022191,2]
[361857794,1747846250463,-430.0,0.00022191,2]
[361857796,1747846250472,-292.91,0.00022191,2]
[361857798,1747846250481,-430.0,0.00022191,2]
[361857800,1747846250490,-330.03,0.00022191,2]
[361857802,1747846250499,-430.0,0.00022191,2]
[361857804,1747846250510,-295.95,0.00022191,2]
[361857806,1747846250519,-500.0,0.00022276,2]
[361857808,1747846250528,-500.0,0.00022375,2]
[361857810,1747846250538,-500.0,0.00022375,2]
[361857812,1747846250547,-408.74187214,0.00022383,7]
[361857814,1747846250556,-500.0,0.00022386,2]
[361857816,1747846250566,-430.0,0.00022463,2]
[361857818,1747846250575,-485.22,0.00022463,2]
[361857820,1747846250584,-500.0,0.00022465,2]
[361857822,1747846250593,-500.0,0.00022465,2]
[361857824,1747846250603,-430.0,0.00022465,2]
[361857826,1747846250612,-430.0,0.00022465,2]
[361857828,1747846250621,-430.0,0.00022465,2]
[361857830,1747846250630,-430.0,0.00022465,2]
[361857832,1747846250640,-430.0,0.00022465,2]
[361857834,1747846250649,-430.0,0.00022465,2]
[361857836,1747846250658,-430.0,0.00022465,2]
[361857838,1747846250667,-430.0,0.00022465,2]
[361857839,1747846250676,-430.0,0.00022465,2]
[361857841,1747846250685,-178.65,0.00022465,2]
[361857843,1747846250694,-323.54503576,0.00022465,2]
[361857845,1747846250704,-430.0,0.00022465,2]
[361857847,1747846250714,-430.0,0.00022465,2]
[361857849,1747846250723,-310.42317964,0.00022465,2]
[361857852,1747846250742,-822.45682036,0.00022465,2]
[361857854,1747846250752,-166.72158049,0.00022465,2]
[361858215,1747846347331,177.051557,0.00013699,2]
[361858216,1747846364575,-160.0,0.00016849,3]
[361858217,1747846364600,-1570.0,0.00019388,2]
[361858220,1747846498820,-5000.0,0.00019186,2]
[361858221,1747846498848,-160.0,0.00019238,2]
[361858222,1747846498875,-232.11479786,0.00019288,2]
[361858223,1747846498904,-160.0,0.00019379,2]
[361858224,1747846498932,-300.0,0.00019387,2]
[361858225,1747846498957,-212.41679935,0.00019387,2]
[361858226,1747846501250,5000.0,0.00018994,2]
[361858227,1747846502843,1200.0,0.00019387,2]
[361858228,1747846502909,300.0,0.00019387,2]
[361858229,1747846512160,160.0,0.00019387,2]
[361858230,1747846513389,894.64583333,0.00019387,2]
[361858231,1747846515339,422.71322487,0.00019387,2]
[361858232,1747846516919,5000.0,0.00019388,2]
[361858233,1747846518883,291.10934459,0.00019387,2]
[361858238,1747847227123,-858.64533863,0.0001592,2]
[361858240,1747847358097,-382.7949926,0.00015761,2]
[361858241,1747847371074,-974.01272459,0.00015761,2]
[361858244,1747847373041,10000.0,0.00019,30]
[361858245,1747847390225,168.198979,0.00013699,2]
[361858248,1747847406602,10000.0,0.00019,30]
[361858249,1747847422831,10000.0,0.00019,30]
[361858292,1747847431854,-3643.19228281,0.00015761,2]
[361858294,1747847431865,-3141.35466138,0.0001592,2]
[361858296,1747847431875,-150.0,0.000189,2]
[361858298,1747847431884,-390.27426371,0.000189,2]
[361858300,1747847431893,-160.0,0.00019108,2]
[361858302,1747847431903,-390.27426346,0.00019141,2]
[361858304,1747847431913,-192.499984,0.00019145,2]
[361858306,1747847431923,-267.0683457,0.00019313,2]
[361858308,1747847431933,-390.27426346,0.00019383,2]
[361858310,1747847431943,-300.0,0.00019426,2]
[361858312,1747847431953,-160.0,0.00019427,2]
[361858314,1747847431963,-160.0,0.00019427,2]
[361858316,1747847431974,-212.41679935,0.00019427,2]
[361858318,1747847431983,-160.0,0.00019427,2]
[361858320,1747847431993,-894.64583333,0.00019427,2]
[361858323,1747847432006,-422.71322487,0.00019427,2]
[361858325,1747847432015,-12459.42304476,0.00019427,2]
[361858327,1747847432027,-183.57892423,0.00019427,2]
[361858329,1747847432037,-160.0,0.00019431,2]
[361858331,1747847432047,-173.993769,0.0001957,2]
[361858333,1747847432057,-390.27426346,0.00019624,2]
[361858335,1747847432067,-303.706763,0.00019748,2]
[361858337,1747847432077,-390.27426346,0.00019866,2]
[361858339,1747847432086,-390.27426346,0.00020107,2]
[361858341,1747847432097,-469.4126017,0.00020152,2]
[361858343,1747847432107,-168.198979,0.00020187,2]
[361858346,1747847432117,-390.27426346,0.00020348,3]
[361858348,1747847432128,-390.27426346,0.0002059,3]
[361858350,1747847432138,-390.27426346,0.00020831,4]
[361858351,1747847432147,-500.0,0.00020998,2]
[361858353,1747847432156,-500.0,0.00020998,2]
[361858355,1747847432166,-500.0,0.00020998,2]
[361858357,1747847432176,-500.0,0.00020998,2]
[361858359,1747847432186,-500.0,0.00020998,2]
[361858361,1747847432197,-500.0,0.00020998,2]
[361858363,1747847432206,-500.0,0.00020998,2]
[361858366,1747847432217,-500.0,0.00020998,2]
[361858368,1747847432227,-500.0,0.00020998,2]